lending/lending_fUSD_20251016
["ID","MTS","AMOUNT","RATE_DAILY","PERIOD"]
[391549283,1760646745603,-712.36,0.00030758,120]
[391549284,1760646745670,-667.09,0.00030758,120]
[391549285,1760646745730,-6460.75,0.00030758,120]
[391549286,1760646745795,-831.07,0.00030758,120]
[391549287,1760646745856,-611.22,0.00030758,120]
[391549288,1760646745925,-6118.47,0.00030758,120]
[391549289,1760646745987,-908.85,0.00030758,120]
[391549290,1760646746047,-500.0,0.00030758,120]
[391549291,1760646746109,-712.36,0.00030758,120]
[391549292,1760646746174,-667.09,0.00030758,120]
[391549293,1760646746237,-774.11781684,0.00030758,120]
[391549294,1760646752540,197.63,0.0001242,2]
[391549295,1760646752719,-912.49,0.000131,2]
[391549296,1760646752729,-88.45974289,0.00013669,2]
[391549297,1760646752745,-824.03025711,0.00013669,2]
[391549298,1760646752755,-300.0,0.00014143,2]
[391549299,1760646752765,-912.49,0.00014239,2]
[391549300,1760646752775,-300.0,0.0001441,2]
[391549301,1760646752786,-1993.87974289,0.0001441,2]
[391549302,1760646752801,-506.12025711,0.0001441,2]
[391549303,1760646752811,-195.0,0.0001441,2]
[391549304,1760646752820,-352.76403651,0.0001441,2]
[391549305,1760646752830,-28.41570638,0.00014809,2]
[391549306,1760646752924,-319.69684295,0.00014809,2]
[391549307,1760646752936,-564.37745067,0.00014809,2]
[391549308,1760646752946,-300.0,0.00014899,2]
[391549309,1760646752956,-2553.24863766,0.000149,2]
[391549310,1760646752971,-921.81352082,0.000149,2]
[391549311,1760646752981,-368.67977808,0.000149,2]
[391549312,1760646752991,-158.70509125,0.000149,2]
[391549313,1760646753001,-500.0,0.00014973,2]
[391549314,1760646753010,-500.0,0.00014999,2]
[391549315,1760646753020,-639.578463,0.00014999,2]
[391549316,1760646753030,-331.62931874,0.00014999,2]
[391549317,1760646753040,-500.0,0.00014999,2]
[391549318,1760646753050,-500.0,0.00014999,2]
[391549319,1760646753059,-418.8244804,0.00014999,2]
[391549320,1760646753069,-522.9458395,0.00014999,2]
[391549321,1760646753078,-478.71316174,0.00014999,2]
[391549322,1760646753087,-500.0,0.00014999,2]
[391549323,1760646753097,-500.0,0.00014999,2]
[391549324,1760646753106,-350.0,0.00014999,2]
[391549325,1760646753115,-150.0,0.00014999,2]
[391549326,1760646753125,-500.0,0.00014999,2]
[391549327,1760646753134,-500.0,0.00014999,2]
[391549328,1760646753144,-169.8959245,0.00014999,2]
[391549329,1760646753153,-2371791.76478651,0.00015,2]
[391549330,1760646753163,-447721.29702988,0.00015,2]
[391549331,1760646753180,-814.95628678,0.000153,2]
[391549332,1760646753190,-912.49,0.00015378,2]
[391549333,1760646753199,-5274.35883895,0.000154,2]
[391549334,1760646753209,-2210.10240044,0.00015807,2]
[391549335,1760646753219,-912.49,0.00015948,2]
[391549336,1760646753228,-258.90574754,0.00016,2]
[391549337,1760646753238,-5000.00164138,0.000162,5]
[391549338,1760646753247,-3475.06215841,0.00016276,2]
[391549339,1760646753257,-912.49,0.00016517,2]
[391549340,1760646753266,-912.49,0.00017087,2]
[391549341,1760646753276,-158.70509121,0.00017151,2]
[391549342,1760646753285,-368.67977806,0.00017526,2]
[391549343,1760646753295,-3475.06215841,0.00017653,2]
[391549344,1760646753304,-912.49,0.00017656,2]
[391549345,1760646753314,-421.61,0.00018135,2]
[391549346,1760646753323,-912.49,0.00018226,2]
[391549347,1760646753333,-912.49,0.00018795,2]
[391549348,1760646753342,-150.99,0.000188,2]
[391549349,1760646753352,-150.99,0.000188,2]
[391549350,1760646753362,-150.99,0.000188,2]
[391549351,1760646753372,-3475.06215841,0.00019029,2]
[391549352,1760646753382,-912.49,0.00019365,2]
[391549353,1760646753392,-158.70509121,0.00019402,2]
[391549354,1760646753401,-912.49,0.00019935,2]
[391549355,1760646753411,-150.0,0.00020058,2]
[391549356,1760646753424,-200.0,0.00020143,2]
[391549357,1760646753434,-368.67977806,0.00020153,2]
[391549358,1760646753443,-3475.06215841,0.00020405,2]
[391549359,1760646753453,-912.49,0.00020504,2]
[391549360,1760646753462,-912.49,0.00021074,2]
[391549361,1760646753471,-912.49,0.00021643,2]
[391549362,1760646753481,-158.70509121,0.00021653,2]
[391549363,1760646753491,-3475.06215841,0.00021782,2]
[391549364,1760646753501,-6121.46699584,0.00022,4]
[391549365,1760646753511,-5954.99,0.00022629,2]
[391549366,1760646753520,-15271.185296,0.00022642,7]
[391549367,1760646753530,-304.99,0.00022646,2]
[391549368,1760646753540,-6639.18,0.00022646,2]
[391549369,1760646753550,-1319.92,0.00022646,2]
[391549370,1760646753560,-302.62,0.00022649,2]
[391549371,1760646753570,-47561.06,0.000227,7]
[391549372,1760646753579,-302.2,0.00022726,2]
[391549373,1760646753589,-303.32,0.00022726,2]
[391549374,1760646753599,-301.68,0.00022727,2]
[391549375,1760646753610,-305.25,0.00022727,2]
[391549376,1760646753619,-300.88,0.00022727,2]
[391549377,1760646753630,-300.67,0.00022727,2]
[391549378,1760646753639,-305.05,0.00022727,2]
[391549379,1760646753648,-302.94,0.00022727,2]
[391549380,1760646753658,-301.85,0.00022727,2]
[391549381,1760646753668,-305.52,0.00022727,2]
[391549382,1760646753680,-301.14,0.00022727,2]
[391549383,1760646753690,-304.71,0.00022727,2]
[391549384,1760646753699,-301.87,0.00022729,2]
[391549385,1760646753708,-305.13,0.00022729,2]
[391549386,1760646753717,-300.19,0.00022729,2]
[391549387,1760646753726,-301.73,0.00022729,2]
[391549388,1760646753737,-302.74,0.00022729,2]
[391549389,1760646753747,-305.18,0.00022729,2]
[391549390,1760646753756,-301.38,0.0002273,2]
[391549391,1760646753769,-301.16,0.0002273,2]
[391549392,1760646753778,-303.45,0.00022733,2]
[391549393,1760646753787,-303.43,0.00022733,2]
[391549394,1760646753796,-302.65,0.00022749,2]
[391549395,1760646753807,-300.38,0.00022749,2]
[391549396,1760646753817,-368.67977806,0.00022779,2]
[391549397,1760646753826,-151.0,0.00022814,2]
[391549398,1760646753836,-305.17,0.00022825,2]
[391549399,1760646753845,-305.81,0.00022826,2]
[391549400,1760646753855,-152.54,0.00022827,2]
[391549401,1760646753864,-304.02,0.00022827,2]
[391549402,1760646753873,-301.11,0.00022827,2]
[391549403,1760646753883,-151.51,0.00022828,2]
[391549404,1760646753892,-151.01,0.00022828,2]
[391549405,1760646753902,-300.43,0.00022828,2]
[391549406,1760646753911,-303.12,0.00022828,2]
[391549407,1760646753924,-150.55,0.00022828,2]
[391549408,1760646753933,-300.57,0.00022828,2]
[391549409,1760646753942,-301.48,0.00022828,2]
[391549410,1760646753951,-303.46,0.00022828,2]
[391549411,1760646753960,-300.4,0.00022829,2]
[391549412,1760646753970,-152.82,0.00022829,2]
[391549413,1760646753979,-305.64,0.00022829,2]
[391549414,1760646753988,-301.62,0.00022829,2]
[391549415,1760646753997,-5000.0,0.0002283,2]
[391549416,1760646754008,-1812.943,0.00022872,2]
[391549417,1760646754017,-749.0,0.00022872,2]
[391549418,1760646754027,-1267.0,0.00022872,2]
[391549419,1760646754037,-2049.0,0.00022872,2]
[391549420,1760646754046,-605.0,0.00022872,2]
[391549421,1760646754056,-571.0,0.00022872,2]
[391549422,1760646754066,-1034.706,0.00022872,2]
[391549423,1760646754075,-259.65,0.000229,2]
[391549424,1760646754084,-814.95628676,0.00022979,2]
[391549425,1760646754093,-3475.06215841,0.00023158,2]
[391549426,1760646754103,-2000.0,0.000233,2]
[391549427,1760646754112,-426.42,0.00023549,2]
[391549428,1760646754122,-277.35679052,0.00023568,2]
[391549429,1760646754133,-250.0,0.00023568,2]
[391549430,1760646754142,-250.0,0.00023568,2]
[391549431,1760646754152,-250.0,0.00023568,2]
[391549432,1760646754161,-250.0,0.00023568,2]
[391549433,1760646754172,-250.0,0.00023568,2]
[391549434,1760646754182,-250.0,0.00023568,2]
[391549435,1760646754365,-250.0,0.00023568,2]
[391549436,1760646754384,-250.0,0.00023568,2]
[391549437,1760646754394,-250.0,0.00023568,2]
[391549438,1760646754403,-250.0,0.00023568,2]
[391549439,1760646754414,-250.0,0.00023568,2]
[391549440,1760646754430,-250.0,0.00023568,2]
[391549441,1760646754440,-1000.0,0.00023568,2]
[391549442,1760646754449,-250.0,0.00023568,2]
[391549443,1760646754459,-1000.0,0.00023568,2]
[391549444,1760646754469,-250.0,0.00023568,2]
[391549445,1760646754479,-1000.0,0.00023568,2]
[391549446,1760646754489,-250.0,0.00023568,2]
[391549447,1760646754499,-1000.0,0.00023568,2]
[391549448,1760646754510,-250.0,0.00023568,2]
[391549449,1760646754520,-250.0,0.00023568,2]
[391549450,1760646754530,-1000.0,0.00023568,2]
[391549451,1760646754539,-250.0,0.00023568,2]
[391549452,1760646754549,-1000.0,0.00023568,2]
[391549453,1760646754559,-250.0,0.00023568,2]
[391549454,1760646754569,-250.0,0.00023568,2]
[391549455,1760646754579,-1000.0,0.00023568,2]
[391549456,1760646754587,-250.0,0.00023568,2]
[391549457,1760646754597,-250.0,0.00023568,2]
[391549458,1760646754606,-1000.0,0.00023568,2]
[391549459,1760646754617,-250.0,0.00023568,2]
[391549460,1760646754627,-250.0,0.00023568,2]
[391549461,1760646754636,-1000.0,0.00023568,2]
[391549462,1760646754645,-250.0,0.00023568,2]
[391549463,1760646754655,-250.0,0.00023568,2]
[391549464,1760646754664,-1000.0,0.00023568,2]
[391549465,1760646754680,-250.0,0.00023568,2]
[391549466,1760646754689,-250.0,0.00023568,2]
[391549467,1760646754699,-1000.0,0.00023568,2]
[391549468,1760646754708,-250.0,0.00023568,2]
[391549469,1760646754718,-250.0,0.00023568,2]
[391549470,1760646754728,-469.64745598,0.00023568,2]
[391549471,1760646754741,-250.0,0.00023568,2]
[391549472,1760646754750,-250.0,0.00023568,2]
[391549473,1760646754759,-250.0,0.00023568,2]
[391549474,1760646754769,-151.0,0.00023568,2]
[391549475,1760646754779,-151.0,0.00023568,2]
[391549476,1760646754789,-250.0,0.00023568,2]
[391549477,1760646754798,-250.0,0.00023568,2]
[391549478,1760646754807,-250.0,0.00023568,2]
[391549479,1760646754816,-250.0,0.00023568,2]
[391549480,1760646754826,-250.0,0.00023568,2]
[391549481,1760646754835,-250.0,0.00023568,2]
[391549482,1760646754846,-250.0,0.00023568,2]
[391549483,1760646754855,-250.0,0.00023568,2]
[391549484,1760646754864,-250.0,0.00023568,2]
[391549485,1760646754873,-250.0,0.00023568,2]
[391549486,1760646754883,-250.0,0.00023568,2]
[391549487,1760646754892,-250.0,0.00023568,2]
[391549488,1760646754901,-250.0,0.00023568,2]
[391549489,1760646754910,-250.0,0.00023568,2]
[391549490,1760646754924,-250.0,0.00023568,2]
[391549491,1760646754933,-250.0,0.00023568,2]
[391549492,1760646754943,-250.0,0.00023568,2]
[391549493,1760646754952,-250.0,0.00023568,2]
[391549494,1760646754962,-250.0,0.00023568,2]
[391549495,1760646754971,-250.0,0.00023568,2]
[391549496,1760646754980,-250.0,0.00023568,2]
[391549497,1760646754989,-250.0,0.00023568,2]
[391549498,1760646754999,-9896.86,0.00023662,2]
[391549499,1760646755008,-666.0,0.00023795,3]
[391549500,1760646755017,-701.63,0.0002385,2]
[391549501,1760646755028,-158.70509121,0.00023905,2]
[391549502,1760646755038,-1586.21,0.00023989,2]
[391549503,1760646755048,-150.99,0.0002399,2]
[391549504,1760646755059,-47561.06,0.00024,7]
[391549505,1760646755068,-1000.0,0.00024148,2]
[391549506,1760646755077,-500.0,0.00024247,2]
[391549507,1760646755087,-151.02,0.00024248,2]
[391549508,1760646755096,-2033.067319,0.0002428,2]
[391549509,1760646755107,-151.0,0.000244,7]
[391549510,1760646755116,-374.11,0.000244,7]
[391549511,1760646755125,-3475.06215841,0.00024534,2]
[391549512,1760646755134,-1037.57083493,0.00024607,5]
[391549513,1760646755143,-1004.4925886,0.00024607,5]
[391549514,1760646755152,-1142.28992464,0.00024607,5]
[391549515,1760646755162,-1096.40257532,0.00024607,5]
[391549516,1760646755175,-1095.88537782,0.00024607,5]
[391549517,1760646755184,-1059.64081646,0.00024607,5]
[391549518,1760646755194,-1139.92615224,0.00024607,5]
[391549519,1760646755203,-1017.57254467,0.00024607,5]
[391549520,1760646755212,-1134.04580486,0.00024607,5]
[391549521,1760646755222,-1636.91375268,0.00024607,5]
[391549522,1760646755231,-1000.0,0.00024658,2]
[391549523,1760646755240,-570293.085785,0.000248,3]
[391549524,1760646755250,-151.0,0.000248,7]
[391549525,1760646755259,-151.0,0.000248,7]
[391549526,1760646755268,-151.0,0.000248,7]
[391549527,1760646755278,-151.0,0.000248,7]
[391549528,1760646755287,-284.09671949,0.00024832,2]
[391549529,1760646755296,-16306.85960192,0.00024832,2]
[391549530,1760646755306,-6124.89869904,0.00024832,2]
[391549531,1760646755315,-1737.41354787,0.00024832,2]
[391549532,1760646755326,-418.37,0.00024835,2]
[391549533,1760646755336,-150.99,0.0002489,2]
[391549534,1760646755346,-4050.4157,0.000249,2]
[391549535,1760646755355,-572076.964777,0.000249,3]
[391549536,1760646755364,-151.0,0.000249,7]
[391549537,1760646755373,-151.0,0.000249,7]
[391549538,1760646755383,-151.0,0.000249,7]
[391549539,1760646755392,-500.0,0.00024932,2]
[391549540,1760646755402,-178.0,0.00025,7]
[391549541,1760646755411,-5120.96,0.00025,7]
[391549542,1760646755423,-2000.0,0.00025,2]
[391549543,1760646755433,-50694.72211298,0.00025,2]
[391549544,1760646755444,-300.44,0.00025353,2]
[391549545,1760646755454,-150.48277132,0.00025371,2]
[391549546,1760646755464,-1000.0,0.000254,6]
[391549547,1760646755474,-1005.0,0.000254,5]
[391549548,1760646755483,-368.67977806,0.00025405,2]
[391549549,1760646755492,-1210.0,0.00025461,2]
[391549550,1760646755501,-47561.06,0.000255,7]
[391549551,1760646755511,-151.0,0.000255,7]
[391549552,1760646755520,-597.31780904,0.00025502,2]
[391549553,1760646755530,-721.95,0.00025727,2]
[391549554,1760646755539,-18636.277,0.00025761,2]
[391549555,1760646755548,-200.0,0.00025854,2]
[391549556,1760646755558,-606.7216918,0.00025861,7]
[391549557,1760646755567,-500.0,0.00025861,7]
[391549558,1760646755577,-500.0,0.00025861,7]
[391549559,1760646755586,-621.66903524,0.00025861,7]
[391549560,1760646755597,-500.0,0.00025861,7]
[391549561,1760646755606,-500.0,0.00025861,7]
[391549562,1760646755617,-500.0,0.00025861,7]
[391549563,1760646755627,-500.0,0.00025861,7]
[391549564,1760646755638,-500.0,0.00025861,7]
[391549565,1760646755649,-727.33744045,0.00025861,7]
[391549566,1760646755658,-500.0,0.00025861,7]
[391549567,1760646755668,-525.76585025,0.00025861,7]
[391549568,1760646755681,-200.0,0.00025875,30]
[391549569,1760646755690,-17472.6132886,0.00025879,2]
[391549570,1760646755700,-178.0,0.0002589,7]
[391549571,1760646755710,-3475.06215841,0.00025911,2]
[391549572,1760646755720,-150.99,0.0002599,2]
[391549573,1760646755730,-5120.96,0.00026,7]
[391549574,1760646755742,-2600.25103888,0.00026,100]
[391549575,1760646755751,-289.81475,0.0002603,2]
[391549576,1760646755764,-278.6331,0.000261,2]
[391549577,1760646755775,-158.70509121,0.00026156,2]
[391549578,1760646755784,-13976.4103346,0.00026157,2]
[391549579,1760646755793,-4999.999999,0.000262,3]
[391549580,1760646755806,-700.0,0.0002627,2]
[391549581,1760646755825,-500.0,0.0002628,2]
[391549582,1760646755846,-300.0,0.0002629,25]
[391549583,1760646755856,-500.0,0.000263,2]
[391549584,1760646755866,-2000.0,0.00026301,13]
[391549585,1760646755876,-2000.0,0.00026301,13]
[391549586,1760646755886,-2000.0,0.00026301,13]
[391549587,1760646755895,-380.29420074,0.00026301,13]
[391549588,1760646755911,-964.09594594,0.00026301,13]
[391549589,1760646755925,-491.53819652,0.00026301,13]
[391549590,1760646755937,-164.0716568,0.00026301,13]
[391549591,1760646755947,-2000.0,0.00026301,13]
[391549592,1760646755957,-2000.0,0.00026301,13]
[391549593,1760646755967,-617.7729382,0.00026301,13]
[391549594,1760646755983,-250.526707,0.000248,7]
[391549595,1760646755993,-1382.2270618,0.00026301,13]
[391549596,1760646756004,-2000.0,0.00026301,13]
[391549597,1760646756014,-2000.0,0.00026301,13]
[391549598,1760646756025,-935.6414508,0.00026301,13]
[391549599,1760646756034,-151.0,0.00026301,7]
[391549600,1760646756044,-500.0,0.00026309,2]
[391549601,1760646756054,-501.81,0.00026309,2]
[391549602,1760646756064,-500.0,0.00026309,2]
[391549603,1760646756073,-500.0,0.00026309,2]
[391549604,1760646756082,-485.72163444,0.00026309,2]
[391549605,1760646756091,-500.0,0.00026309,2]
[391549606,1760646756101,-500.0,0.00026309,2]
[391549607,1760646756111,-170360.52,0.0002631,2]
[391549608,1760646756120,-151.0,0.0002631,7]
[391549609,1760646756129,-151.0,0.0002631,7]
[391549610,1760646756138,-151.0,0.0002631,7]
[391549611,1760646756148,-151.0,0.0002631,7]
[391549612,1760646756158,-151.0,0.0002631,7]
[391549613,1760646756168,-151.0,0.0002631,7]
[391549614,1760646756180,-474.66,0.00026314,2]
[391549615,1760646756190,-675.45,0.00026401,30]
[391549616,1760646756199,-500.0,0.00026598,2]
[391549617,1760646756209,-500.0,0.00026598,2]
[391549618,1760646756218,-500.0,0.00026598,2]
[391549619,1760646756227,-305.52700203,0.00026599,2]
[391549620,1760646756237,-500.0,0.00026599,2]
[391549621,1760646756247,-2938.13,0.00026599,2]
[391549622,1760646756257,-708.12,0.00026599,2]
[391549623,1760646756267,-441.81,0.00026676,2]
[391549624,1760646756276,-47561.06,0.000267,7]
[391549625,1760646756285,-4056.70837557,0.000269,4]
[391549626,1760646756295,-4056.70837557,0.000269,4]
[391549627,1760646756304,-4056.70837557,0.000269,4]
[391549628,1760646756314,-4056.70837557,0.000269,4]
[391549629,1760646756323,-4056.70837557,0.000269,4]
[391549630,1760646756333,-4056.70837557,0.000269,4]
[391549631,1760646756342,-4056.70837557,0.000269,4]
[391549632,1760646756352,-4056.70837557,0.000269,4]
[391549633,1760646756361,-4056.70837557,0.000269,4]
[391549634,1760646756373,-4056.70837557,0.000269,4]
[391549635,1760646756390,-4056.70837557,0.000269,4]
[391549636,1760646756400,-4056.70837557,0.000269,4]
[391549637,1760646756410,-4056.70837557,0.000269,4]
[391549638,1760646756423,-4056.70837557,0.000269,4]
[391549639,1760646756434,-4056.70837557,0.000269,4]
[391549640,1760646756444,-4056.70837557,0.000269,4]
[391549641,1760646756454,-4056.70837557,0.000269,4]
[391549642,1760646756464,-4056.70837557,0.000269,4]
[391549643,1760646756475,-4056.70837557,0.000269,4]
[391549644,1760646756484,-4056.7,0.000269,4]
[391549645,1760646756494,-9465.65287632,0.000269,4]
[391549646,1760646756504,-9465.65287632,0.000269,4]
[391549647,1760646756514,-9465.65287632,0.000269,4]
[391549648,1760646756525,-9465.65287632,0.000269,4]
[391549649,1760646756535,-9465.65287632,0.000269,4]
[391549650,1760646756545,-9465.65287632,0.000269,4]
[391549651,1760646756554,-9465.65287632,0.000269,4]
[391549652,1760646756563,-151.0,0.000269,7]
[391549653,1760646756573,-152.0,0.00026926,4]
[391549654,1760646756582,-200.0,0.00026957,2]
[391549655,1760646756591,-200.0,0.00026957,2]
[391549656,1760646756600,-200.0,0.00026957,2]
[391549657,1760646756610,-200.0,0.00026957,2]
[391549658,1760646756619,-200.0,0.00026957,2]
[391549659,1760646756629,-200.0,0.00026957,2]
[391549660,1760646756641,-200.0,0.00026957,2]
[391549661,1760646756650,-200.0,0.00026957,2]
[391549662,1760646756660,-200.0,0.00026957,2]
[391549663,1760646756673,-200.0,0.00026957,2]
[391549664,1760646756682,-200.0,0.00026957,2]
[391549665,1760646756691,-200.0,0.00026957,2]
[391549666,1760646756701,-200.0,0.00026957,2]
[391549667,1760646756710,-200.0,0.00026957,2]
[391549668,1760646756727,-200.0,0.00026957,2]
[391549669,1760646756748,-200.0,0.00026957,2]
[391549670,1760646756767,-200.0,0.00026957,2]
[391549671,1760646756784,-200.0,0.00026957,2]
[391549672,1760646756796,-200.0,0.00026957,2]
[391549673,1760646756806,-200.0,0.00026957,2]
[391549674,1760646756818,-200.0,0.00026957,2]
[391549675,1760646756830,-200.0,0.00026957,2]
[391549676,1760646756840,-200.0,0.00026957,2]
[391549677,1760646756850,-200.0,0.00026957,2]
[391549678,1760646756862,-200.0,0.00026957,2]
[391549679,1760646756872,-200.0,0.00026957,2]
[391549680,1760646756882,-200.0,0.00026957,2]
[391549681,1760646756892,-200.0,0.00026957,2]
[391549682,1760646756902,-200.0,0.00026957,2]
[391549683,1760646756911,-427.0,0.00026957,13]
[391549684,1760646756923,-200.0,0.00026957,2]
[391549685,1760646756933,-244.0,0.00026957,2]
[391549686,1760646756943,-2968.00388795,0.00026972,2]
[391549687,1760646756953,-9465.65287632,0.00026979,4]
[391549688,1760646756963,-546.62,0.00026985,2]
[391549689,1760646756972,-300.0,0.00026985,2]
[391549690,1760646756982,-176.03,0.00026985,2]
[391549691,1760646756992,-2798.0,0.00026989,32]
[391549692,1760646757001,-500.0,0.00026989,2]
[391549693,1760646757011,-500.0,0.00026999,2]
[391549694,1760646757021,-416.24,0.00026999,2]
[391549695,1760646757031,-10519.0,0.00027,7]
[391549696,1760646757040,-500.0,0.00027,2]
[391549697,1760646757050,-163.6092921,0.00027,12]
[391549698,1760646757059,-449.17,0.00027,7]
[391549699,1760646757069,-1000.0,0.00027,2]
[391549700,1760646757079,-1432.88,0.00027,7]
[391549701,1760646757088,-59188.23,0.00027,2]
[391549702,1760646757098,-3731.29,0.00027,7]
[391549703,1760646757108,-746.43,0.00027,7]
[391549704,1760646757117,-1119.39,0.00027,7]
[391549705,1760646757127,-1000.0,0.00027,60]
[391549706,1760646757491,-500.0,0.00027,14]
[391549707,1760646757501,-14115.58,0.00027,7]
[391549708,1760646757510,-3264.82379501,0.00027,2]
[391549709,1760646757520,-3172.82,0.00027,7]
[391549710,1760646757529,-373.13,0.00027,7]
[391549711,1760646757539,-373.13,0.00027,7]
[391549712,1760646757548,-1008.2913,0.00027,2]
[391549713,1760646757557,-262.38,0.00027,7]
[391549714,1760646757567,-655.47,0.00027,5]
[391549715,1760646757576,-201.73,0.00027,7]
[391549716,1760646757587,-171.0,0.00027,7]
[391549717,1760646757597,-2000.0,0.00027,2]
[391549718,1760646757607,-5120.96,0.00027,7]
[391549719,1760646757617,-170.0,0.00027,7]
[391549720,1760646757627,-289.81476,0.0002703,2]
[391549721,1760646757636,-500.0,0.00027045,2]
[391549722,1760646757646,-500.0,0.00027045,2]
[391549723,1760646757656,-500.0,0.00027045,2]
[391549724,1760646757666,-174.96,0.00027045,2]
[391549725,1760646757678,-500.0,0.0002705,2]
[391549726,1760646757688,-161.74,0.0002705,2]
[391549727,1760646757698,-200.0,0.00027056,2]
[391549728,1760646757708,-5000.0,0.0002717,2]
[391549729,1760646757718,-247.79828084,0.0002717,2]
[391549730,1760646757728,-500.0,0.00027222,2]
[391549731,1760646757738,-152.711721,0.0002727,7]
[391549732,1760646757748,-151.0,0.0002727,7]
[391549733,1760646757758,-152.80205,0.0002727,7]
[391549734,1760646757772,-151.0,0.0002727,7]
[391549735,1760646757781,-206.577664,0.0002727,7]
[391549736,1760646757791,-151.0,0.0002728,7]
[391549737,1760646757803,-189.649771,0.0002728,7]
[391549738,1760646757813,-9465.65287632,0.00027286,4]
[391549739,1760646757823,-3475.06215841,0.00027287,2]
[391549740,1760646757834,-500.0,0.00027289,2]
[391549741,1760646757844,-500.0,0.00027289,2]
[391549742,1760646757854,-207.0,0.00027289,2]
[391549743,1760646757864,-208.12,0.00027289,2]
[391549744,1760646757874,-150.99,0.0002729,2]
[391549745,1760646757884,-500.0,0.00027299,2]
[391549746,1760646757894,-165474.48050815,0.000273,4]
[391549747,1760646757904,-151.0,0.000273,7]
[391549748,1760646757914,-2938.13,0.00027317,2]
[391549749,1760646757927,-280.9,0.00027317,2]
[391549750,1760646757936,-21257.97551832,0.00027318,2]
[391549751,1760646757946,-500.0,0.00027328,2]
[391549752,1760646757956,-1000.0,0.00027341,2]
[391549753,1760646757966,-2968.00388795,0.00027351,2]
[391549754,1760646757976,-500.0,0.00027373,2]
[391549755,1760646757986,-500.0,0.00027377,2]
[391549756,1760646757996,-500.0,0.00027389,2]
[391549757,1760646758006,-4042.93023911,0.0002739,2]
[391549758,1760646758015,-7986.40734552,0.0002739,2]
[391549759,1760646758025,-4316.30418448,0.0002739,7]
[391549760,1760646758035,-3187.92706175,0.0002739,2]
[391549761,1760646758045,-708.12,0.00027396,2]
[391549762,1760646758055,-312.57711192,0.00027396,2]
[391549763,1760646758065,-6027.0,0.00027397,3]
[391549764,1760646758075,-1163.77,0.00027397,2]
[391549765,1760646758085,-1163.77,0.00027397,2]
[391549766,1760646758096,-1163.77,0.00027397,2]
[391549767,1760646758105,-1163.77,0.00027397,2]
[391549768,1760646758115,-1163.77,0.00027397,2]
[391549769,1760646758124,-1163.77,0.00027397,2]
[391549770,1760646758134,-1163.77,0.00027397,2]
[391549771,1760646758143,-1163.77,0.00027397,2]
[391549772,1760646758153,-1163.77,0.00027397,2]
[391549773,1760646758163,-1163.77,0.00027397,2]
[391549774,1760646758175,-1163.77,0.00027397,2]
[391549775,1760646758185,-1163.77,0.00027397,2]
[391549776,1760646758195,-1163.77,0.00027397,2]
[391549777,1760646758205,-1163.77,0.00027397,2]
[391549778,1760646758215,-1163.77,0.00027397,2]
[391549779,1760646758229,-1163.77,0.00027397,2]
[391549780,1760646758239,-1163.77,0.00027397,2]
[391549781,1760646758250,-1163.77,0.00027397,2]
[391549782,1760646758260,-1163.77,0.00027397,2]